bitfinex-derivatives/quotes_ETHF0:USTF0_20250903
["timestamp","ask_amount","ask_price","bid_price","bid_amount"]
[1756905492413,0.244,4394.4,4394.0,0.1221]
[1756905492713,0.244,4394.4,4393.7,0.2893]
[1756905492914,3.2078,4394.0,4393.7,0.2893]
[1756905493223,3.4518,4394.0,4393.6,0.2893]
[1756905493418,3.4518,4394.0,4393.5,0.1221]
[1756905493626,3.4518,4394.0,4393.6,0.2893]
[1756905493919,0.244,4393.9,4393.5,0.1221]
[1756905494318,0.244,4393.9,4393.6,0.2893]
[1756905494525,0.244,4393.8,4393.6,0.2893]
[1756905494920,0.244,4393.8,4393.7,2.475065]
[1756905495422,4.244,4393.8,4393.7,2.475065]
[1756905495924,5.46343028,4393.8,4393.7,2.475065]
[1756905496125,4.244,4393.8,4393.7,2.475065]
[1756905496925,9.44618071,4393.8,4393.7,2.475065]
[1756905497126,0.244,4393.8,4393.7,2.475065]
[1756905497320,5.21872575,4393.8,4393.7,2.475065]
[1756905497520,5.46272575,4393.8,4393.7,2.475065]
[1756905497722,5.21872575,4393.8,4393.7,2.475065]
[1756905497920,3.2078,4393.9,4393.8,0.2893]
[1756905498214,3.4518,4393.9,4393.8,0.2893]
[1756905499022,3.98307514,4393.9,4393.8,0.2893]
[1756905499425,3.98307514,4393.9,4393.7,2.475065]
[1756905499630,0.53127514,4393.8,4393.7,2.764365]
[1756905499830,0.77527514,4393.8,4393.7,2.764365]
[1756905501330,0.20127514,4393.8,4393.7,2.764365]
[1756905501533,0.244,4394.0,4393.8,0.2893]
[1756905502328,0.244,4394.0,4393.7,2.475065]
[1756905502523,32.779,4394.3,4393.8,0.2893]
[1756905502725,35.9868,4394.3,4394.0,0.1164]
[1756905502920,0.244,4394.2,4393.7,2.475065]
[1756905503125,3.2078,4393.8,4393.7,2.475065]
[1756905503424,3.4518,4393.8,4393.7,2.764365]
[1756905503826,35.9868,4394.3,4393.7,2.764365]
[1756905504021,35.9868,4394.3,4394.1,0.2893]
[1756905504022,0.244,4394.2,4394.1,0.2893]
[1756905506528,3.2078,4395.1,4395.0,0.1164]
[1756905506732,3.2078,4395.1,4395.0,0.4057]
[1756905507736,3.4518,4395.1,4395.0,0.4057]
[1756905508134,3.4518,4395.1,4394.2,2.475065]
[1756905508135,7.4518,4395.1,4394.2,2.475065]
[1756905508335,3.2078,4394.6,4394.2,2.475065]
[1756905508530,0.244,4394.5,4394.3,0.2893]
[1756905508737,0.244,4394.5,4394.2,2.475065]
[1756905509433,4.0,4394.4,4394.2,2.475065]
[1756905509736,0.243,4394.4,4394.0,0.1164]
[1756905509935,3.2078,4394.1,4394.0,0.4057]
[1756905510133,3.4518,4394.1,4394.0,0.4057]
[1756905510832,3.4518,4394.1,4393.5,0.1164]
[1756905511039,3.4518,4394.1,4393.5,0.4057]
[1756905511642,0.243,4394.0,4393.5,0.1164]
[1756905511840,0.243,4394.0,4393.6,0.2893]
[1756905512140,3.2078,4394.1,4394.0,0.1164]
[1756905512338,3.4508,4394.1,4394.0,0.4057]
[1756905514937,3.2078,4394.1,4394.0,0.4057]
[1756905515141,3.4508,4394.1,4394.0,0.4057]
[1756905515339,3.4508,4394.1,4394.0,2.880765]
[1756905516139,3.4508,4394.1,4394.0,2.475065]
[1756905517241,3.98167744,4394.1,4394.0,2.475065]
[1756905519344,7.98167744,4394.1,4394.0,2.19998636]
[1756905519645,8.20925744,4394.1,4394.0,2.19998636]
[1756905519832,7.98167744,4394.1,4394.0,2.19998636]
[1756905520037,9.42798319,4394.1,4394.0,2.19998636]
[1756905520239,9.60930593,4394.1,4394.0,2.19998636]
[1756905520535,8.39058018,4394.1,4394.0,2.19998636]
[1756905520939,8.43020807,4394.1,4394.0,2.19998636]
[1756905521543,0.1184,4392.5,4391.3,1.29518636]
[1756905521742,3.2078,4391.8,4391.1,1.29518636]
[1756905521941,0.243,4391.7,4391.1,1.29518636]
[1756905522138,0.3005,4391.4,4391.1,1.29518636]
[1756905522334,0.1184,4392.0,4390.5,0.1164]
[1756905522335,3.2078,4391.2,4390.5,0.1164]
[1756905522538,0.3005,4391.0,4390.6,42.09518636]
[1756905522842,3.2078,4391.2,4391.0,0.1145]
[1756905523042,0.243,4391.1,4391.0,0.1145]
[1756905523242,0.243,4391.1,4391.0,4.1145]
[1756905523442,0.243,4391.1,4391.0,5.40968636]
[1756905523642,0.243,4391.1,4391.0,5.70688636]
[1756905524148,0.1134,4391.6,4391.5,0.4117]
[1756905524444,0.3564,4391.6,4391.5,0.2972]
[1756905524946,0.3564,4391.6,4391.5,0.4117]
[1756905525344,0.3564,4391.6,4391.5,2.886765]
[1756905525645,0.3564,4391.6,4391.5,2.772265]
[1756905525847,0.6569,4391.6,4391.5,2.772265]
[1756905526049,0.6569,4391.6,4391.5,2.475065]
[1756905526447,1.18723068,4391.6,4391.5,2.475065]
[1756905527644,0.64373068,4391.6,4391.5,2.772265]
[1756905527844,0.88673068,4391.6,4391.5,2.772265]
[1756905529248,1.18723068,4391.6,4391.5,2.772265]
[1756905530452,1.18723068,4391.6,4391.5,2.475065]
[1756905532044,0.94423068,4391.6,4391.5,2.475065]
[1756905532246,1.18623068,4391.6,4391.5,2.475065]
[1756905534051,1.18623068,4391.6,4391.5,2.886765]
[1756905534052,0.88573068,4391.6,4391.5,2.886765]
[1756905534245,0.3554,4391.6,4391.5,2.886765]
[1756905536255,5.0539909,4391.6,4391.5,2.475065]
[1756905537955,1.07124047,4391.6,4391.5,2.475065]
[1756905538849,1.47924047,4391.6,4391.5,2.475065]
[1756905540345,5.47924047,4391.6,4391.5,1.952165]
[1756905542052,0.93674047,4391.6,4391.5,2.567465]
[1756905542259,1.17874047,4391.6,4391.5,2.567465]
[1756905543860,0.97874047,4391.6,4391.5,2.764465]
[1756905544560,0.77074047,4391.6,4391.5,2.764465]
[1756905547356,0.21134047,4391.6,4391.5,8.05965136]
[1756905547556,3.2078,4391.7,4391.6,0.2972]
[1756905547755,2.2556,4391.7,4391.6,5.59238636]
[1756905547953,2.2556,4391.7,4391.6,4.2972]
[1756905550454,0.3543,4391.8,4391.6,4.0]
[1756905550662,0.3543,4391.8,4391.7,1.29518636]
[1756905551066,0.3543,4391.8,4391.7,42.09518636]
[1756905551462,0.3543,4391.8,4391.7,44.57025136]
[1756905551766,0.6585,4391.8,4391.7,44.57025136]
[1756905551956,0.6585,4391.8,4391.7,3.77025136]
[1756905552160,4.267,4391.8,4391.7,2.475065]
[1756905552360,3.8663,4391.8,4391.7,2.475065]
[1756905552763,3.6253,4391.8,4391.7,2.475065]
[1756905553066,3.8663,4391.8,4391.7,2.475065]
[1756905553463,3.3211,4391.8,4391.7,3.77025136]
[1756905553666,3.5621,4391.8,4391.7,3.77025136]
[1756905553968,0.3543,4391.8,4391.7,7.77025136]
[1756905554768,0.241,4391.8,4391.7,7.77025136]
[1756905556174,0.241,4391.8,4391.7,3.77025136]
[1756905558467,0.5452,4391.8,4391.7,3.77025136]
[1756905558671,0.241,4391.8,4391.7,3.77025136]
[1756905559870,0.5452,4391.8,4391.7,3.77025136]
[1756905560471,0.241,4391.8,4391.7,3.77025136]
[1756905562074,4.1537,4391.8,4391.7,2.475065]
[1756905562273,4.68386288,4391.8,4391.7,2.475065]
[1756905562467,3.97796288,4391.8,4391.7,3.77025136]
[1756905562672,4.28216288,4391.8,4391.7,3.77025136]
[1756905562870,4.68286288,4391.8,4391.7,3.77025136]
[1756905563067,4.68286288,4391.8,4391.7,2.475065]
[1756905563777,4.49156288,4391.8,4391.7,2.475065]
[1756905564178,1.28376288,4391.8,4391.7,2.475065]
[1756905564376,0.83436288,4391.8,4391.7,3.77025136]
[1756905564578,1.07436288,4391.8,4391.7,3.77025136]
[1756905565380,1.28376288,4391.8,4391.7,3.77025136]
[1756905565568,4.49156288,4391.8,4391.7,3.77025136]
[1756905566183,4.68286288,4391.8,4391.7,3.77025136]
[1756905566383,4.68286288,4391.8,4391.7,2.475065]
[1756905567075,4.28216288,4391.8,4391.7,3.77025136]
[1756905567274,3.73796288,4391.8,4391.7,3.77025136]
[1756905567475,0.24,4391.8,4391.7,3.77025136]
[1756905568877,0.3533,4392.0,4391.7,3.77025136]
[1756905569080,0.1133,4392.0,4391.9,1.29518636]
[1756905569484,0.1133,4392.0,4391.9,42.09518636]
[1756905570280,0.1133,4392.0,4391.9,44.57025136]
[1756905570675,0.24,4392.6,4391.9,48.57025136]
[1756905570875,3.2078,4392.9,4392.5,1.29518636]
[1756905571084,3.2078,4392.9,4392.8,1.29518636]
[1756905571085,3.512,4392.9,4392.8,1.29518636]
[1756905571482,3.512,4392.9,4392.4,0.24]
[1756905571681,3.512,4392.9,4392.8,1.29518636]
[1756905572082,0.3042,4392.8,4392.4,0.24]
[1756905572284,3.6085,4392.9,4392.8,1.29518636]
[1756905572789,3.2078,4392.9,4392.4,0.24]
[1756905573087,3.512,4392.9,4392.8,1.29518636]
[1756905573475,3.2078,4392.9,4392.4,0.24]
[1756905573686,3.512,4392.9,4392.8,1.29518636]
[1756905573880,3.9127,4392.9,4392.8,1.29518636]
[1756905574080,3.9127,4392.9,4392.3,0.239]
[1756905574288,3.9127,4392.9,4392.8,1.29518636]
[1756905574886,3.9127,4392.9,4392.3,0.239]
[1756905575082,3.9127,4392.9,4392.8,1.29518636]
[1756905575490,0.3042,4392.8,4392.4,2.475065]
[1756905575884,0.3042,4392.8,4392.7,1.29518636]
[1756905576888,0.5136,4392.8,4392.7,1.29518636]
[1756905577082,0.3042,4392.8,4392.7,1.29518636]
[1756905578892,0.5136,4392.8,4392.7,1.29518636]
[1756905580485,0.3042,4392.8,4392.7,3.77025136]
[1756905581581,3.2078,4394.4,4394.3,0.6883]
[1756905581786,0.1144,4395.0,4394.4,0.2953]
[1756905581991,0.1144,4395.5,4394.8,0.393]
[1756905582189,0.93094658,4395.4,4394.9,1.17188636]
[1756905582391,0.5225,4395.0,4394.6,0.87658636]
[1756905582592,0.5225,4395.0,4394.7,0.87658636]
[1756905582891,0.5225,4395.0,4394.6,0.87658636]
[1756905583293,0.5225,4395.0,4394.7,0.87658636]
[1756905583590,0.2096,4394.7,4394.6,1.26958636]
[1756905583791,0.5099,4394.7,4394.6,1.56488636]
[1756905583991,0.5099,4394.7,4394.6,0.6883]
[1756905584293,0.5099,4394.7,4394.6,0.393]
[1756905584496,0.7018,4394.7,4394.6,0.393]
[1756905585086,0.3003,4394.6,4394.5,40.8]
[1756905585293,0.3003,4394.4,4393.4,0.2953]
[1756905585589,0.3003,4394.2,4393.5,0.87658636]
[1756905585788,0.5099,4393.7,4393.6,40.8]
[1756905586183,0.2096,4394.0,4393.9,0.6883]
[1756905586389,0.121,4395.0,4394.6,0.2953]
[1756905586589,0.3306,4395.0,4394.9,0.393]
[1756905586786,0.6309,4395.0,4394.9,0.393]
[1756905586994,0.8228,4395.0,4394.9,0.393]
[1756905588789,1.0628,4395.0,4394.9,0.393]
[1756905589496,0.8228,4395.0,4394.9,0.393]
[1756905589697,0.4015,4394.6,4394.5,2.475065]
[1756905589884,0.9418,4394.6,4394.5,2.475065]
[1756905590085,0.9418,4394.6,4394.5,3.35165136]
[1756905590295,0.9418,4394.6,4394.5,3.55355136]
[1756905590699,0.9418,4394.6,4394.5,3.35165136]
[1756905590994,0.9418,4394.6,4394.5,3.55355136]
[1756905592099,0.9418,4394.6,4394.5,3.35165136]
[1756905592591,0.3003,4394.9,4394.6,0.2953]
[1756905592798,0.24,4394.8,4394.7,0.6883]
[1756905592997,0.9418,4394.8,4394.7,1.26958636]
[1756905593193,0.9418,4394.8,4394.5,2.475065]
[1756905593398,0.7018,4394.7,4394.6,0.87658636]
[1756905593899,0.7018,4394.6,4394.5,2.475065]
[1756905594394,0.7018,4394.6,4394.5,3.35165136]
[1756905595188,0.7018,4394.6,4394.5,3.55355136]
[1756905595996,0.7018,4394.6,4394.5,3.35165136]
[1756905596495,0.7018,4394.6,4394.5,3.55355136]
[1756905597095,0.7018,4394.6,4394.5,3.74465136]
[1756905597691,5.45737108,4394.6,4394.5,1.51056499]
[1756905599302,1.45737108,4394.6,4394.5,1.51056499]
[1756905599501,5.44734613,4394.6,4394.5,1.51056499]
[1756905599802,5.21979613,4394.6,4394.5,1.51056499]
[1756905600300,6.44552915,4394.6,4394.5,1.51056499]
[1756905600496,10.44552915,4394.6,4394.5,1.51056499]
[1756905600691,0.0546,4394.5,4392.4,0.87658636]
[1756905600902,0.7018,4392.7,4392.6,0.2019]
[1756905601102,0.9408,4392.7,4392.6,0.2019]
[1756905601806,0.9408,4392.7,4391.8,3.2078]
[1756905602000,0.7018,4392.1,4392.0,0.2019]
[1756905602306,3.5081,4392.9,4392.3,0.393]
[1756905602510,0.239,4392.8,4392.3,0.393]
[1756905602696,0.239,4392.8,4392.0,0.1156]
[1756905602697,0.4486,4392.8,4392.7,0.393]
[1756905602997,0.4486,4392.8,4392.7,0.6883]
[1756905603298,3.2078,4392.9,4392.7,1.26958636]
[1756905603502,3.2078,4392.9,4392.8,1.56488636]
[1756905603803,3.2078,4393.4,4393.1,0.2953]
[1756905604100,3.2078,4393.4,4393.3,0.6883]
[1756905604297,3.4174,4393.4,4393.3,0.6883]
[1756905604501,3.7177,4393.4,4393.3,0.6883]
[1756905605203,0.5099,4393.4,4393.3,0.6883]
[1756905605798,0.4486,4393.4,4393.3,0.6883]
[1756905606200,0.9408,4393.4,4393.3,0.6883]
[1756905606399,4.1486,4393.4,4393.3,0.6883]
[1756905608800,3.8483,4393.4,4393.3,0.6883]
[1756905609204,3.4174,4393.4,4393.3,0.6883]
[1756905609409,3.5081,4394.5,4394.2,0.2953]
[1756905609705,0.97713311,4394.4,4394.3,0.6883]
[1756905609910,0.4486,4394.4,4394.3,0.6883]
[1756905610111,0.9408,4394.4,4394.3,0.6883]
[1756905610312,0.9408,4394.4,4393.8,0.2953]
[1756905610513,0.121,4394.0,4393.6,0.87658636]
[1756905610713,0.7018,4393.7,4393.6,1.56488636]
[1756905610905,0.6405,4393.7,4393.6,0.6883]
[1756905611415,3.2078,4393.9,4393.6,0.393]
[1756905611607,0.239,4393.8,4393.7,1.17538636]
[1756905611808,0.4346,4393.8,4393.7,0.687]
[1756905612007,0.4346,4393.8,4393.7,1.56358636]
[1756905612314,0.7334,4393.8,4393.7,1.56358636]
[1756905612507,0.9356,4393.8,4393.7,4.03865136]
[1756905612703,0.9356,4393.8,4393.7,2.475065]
[1756905614515,1.46451953,4393.8,4393.7,2.475065]
[1756905616822,0.238,4394.3,4394.0,0.1148]
[1756905617118,0.238,4394.2,4394.1,1.56358636]
[1756905617318,0.239,4394.2,4394.1,1.56358636]
[1756905617518,0.239,4394.2,4394.1,0.687]
[1756905620520,0.4346,4394.2,4394.1,0.687]
[1756905620711,0.9356,4394.2,4394.1,0.687]
[1756905621822,0.9356,4394.2,4393.6,0.2988]
[1756905622120,0.6966,4393.7,4393.2,0.2988]
[1756905622423,0.6966,4393.3,4393.2,0.1915]
[1756905623021,0.1956,4392.4,4392.3,0.687]
[1756905623924,0.6966,4392.4,4392.3,0.687]
[1756905624524,0.6966,4392.4,4392.3,0.1915]
[1756905625212,3.5066,4392.8,4392.4,0.2988]
[1756905625413,0.76729375,4392.7,4392.6,0.687]
[1756905625618,0.96289375,4392.7,4392.6,0.687]
[1756905626422,0.52929375,4392.7,4392.6,0.687]
[1756905626621,0.238,4393.2,4392.7,0.2988]
[1756905626826,0.238,4393.2,4393.1,0.687]
[1756905630223,0.4336,4393.2,4393.1,0.687]
[1756905630936,3.5066,4393.5,4393.2,0.2988]
[1756905631233,0.1956,4393.3,4393.2,1.56358636]
[1756905631528,0.1956,4393.3,4393.2,4.03865136]
[1756905631928,0.238,4393.3,4393.2,4.03865136]
[1756905632927,0.1144,4394.0,4393.4,0.3882]
[1756905632928,3.2078,4394.0,4393.4,0.3882]
[1756905633234,3.7022,4394.0,4393.9,0.687]
[1756905633418,4.78597014,4394.0,4393.3,0.87658636]
[1756905633622,0.3978,4393.5,4393.4,41.67658636]
[1756905633824,4.1424,4393.5,4393.4,0.1915]
[1756905634024,4.1424,4393.5,4393.4,1.06808636]
[1756905634224,3.8436,4393.5,4393.4,1.56358636]
[1756905634519,4.2568,4393.5,4393.4,0.87658636]
[1756905634923,0.2988,4393.4,4393.2,2.475065]
[1756905635120,0.6966,4393.3,4393.2,2.475065]
[1756905635325,1.22584852,4393.3,4393.2,2.475065]
[1756905635531,1.45346852,4393.3,4393.2,1.861965]
[1756905635822,1.22584852,4393.3,4393.2,1.861965]
[1756905636630,5.22584852,4393.3,4393.2,1.861965]
[1756905638526,5.46384852,4393.3,4393.2,1.861965]
[1756905643029,1.46384852,4393.3,4393.2,1.861965]
[1756905643835,5.46384852,4393.3,4393.2,1.861965]
[1756905644031,5.69146852,4393.3,4392.2,0.2944]
[1756905644232,3.2078,4392.3,4392.0,0.1148]
[1756905644425,0.76724852,4392.2,4392.0,0.1148]
[1756905644635,0.52924852,4392.1,4391.6,0.2944]
[1756905644835,3.98997505,4392.4,4391.6,0.2944]
[1756905644836,3.2078,4391.7,4391.6,0.4983]
[1756905645035,3.4458,4391.7,4391.6,0.4983]
[1756905645438,3.97466506,4391.7,4391.6,0.4983]
[1756905647232,3.97466506,4391.7,4391.6,0.2944]
[1756905647536,3.97466506,4391.7,4390.5,0.1257]
[1756905647734,3.4458,4391.7,4391.6,0.2944]
[1756905647934,3.97424631,4391.7,4391.6,0.2944]
[1756905648532,3.97424631,4391.7,4391.0,0.6131]
[1756905648832,3.2078,4391.1,4391.0,0.6131]
[1756905649037,3.97424631,4391.1,4391.0,0.6131]
[1756905649436,3.4458,4391.1,4391.0,0.4092]
[1756905649628,3.4458,4391.1,4391.0,0.6131]
[1756905650535,3.4458,4391.1,4391.0,3.088165]
[1756905651338,3.97439881,4391.1,4391.0,3.289765]
[1756905652244,0.238,4392.4,4392.3,0.0028]
[1756905652537,0.7355,4392.4,4392.3,3.2106]
[1756905653643,0.5257,4392.4,4392.3,3.2106]
[1756905653835,0.7355,4392.4,4392.3,3.2106]
[1756905654042,0.9377,4392.4,4392.3,3.2106]
[1756905654237,0.5257,4392.4,4392.3,3.2106]
[1756905655437,0.5257,4392.4,4392.3,3.2115]
[1756905656446,0.5257,4392.4,4392.3,3.2106]
[1756905657644,11.43577505,4392.4,4390.9,3.2078]
[1756905657848,11.43577505,4392.4,4389.0,2.84139997]
[1756905657849,3.2078,4391.3,4391.0,0.1257]
[1756905658042,0.241,4391.2,4391.0,0.1257]
[1756905659446,4.62119685,4391.1,4391.0,0.1257]
[1756905659644,4.62119685,4391.1,4391.0,0.4201]
[1756905660845,4.62119685,4391.1,4391.0,2.895165]
[1756905663447,4.62229685,4391.1,4391.0,2.475065]
[1756905664141,5.15587086,4391.1,4391.0,2.475065]
[1756905664345,9.15477086,4391.1,4390.5,0.4201]
[1756905664547,3.2078,4390.6,4390.5,0.4201]
[1756905664751,3.98237401,4390.6,4390.5,0.4201]
[1756905666352,3.98237401,4390.6,4390.5,0.624]
[1756905666353,3.98407401,4390.6,4390.5,0.624]
[1756905667554,3.98407401,4390.6,4390.5,3.300665]
[1756905669851,0.2098,4389.6,4389.5,0.5312]
[1756905670055,5.27319685,4389.6,4389.5,0.5312]
[1756905670958,3.2078,4389.7,4389.5,0.5312]
[1756905671156,0.24,4389.6,4389.5,0.5312]
[1756905671548,3.2078,4390.2,4389.5,4.5312]
[1756905671754,0.24,4390.1,4390.0,0.706]
[1756905671951,0.24,4390.1,4390.0,1.1049]
[1756905672263,0.77287472,4390.1,4390.0,1.1049]
[1756905673151,0.77287472,4390.1,4390.0,3.579965]
[1756905673350,1.71397472,4390.1,4390.0,3.579965]
[1756905673553,1.30667472,4390.1,4390.0,3.579965]
[1756905674459,1.71397472,4390.1,4390.0,3.579965]
[1756905674862,1.71397472,4390.1,4390.0,3.143765]
[1756905675057,1.71397472,4390.1,4390.0,2.475065]
[1756905676261,1.06667472,4390.1,4390.0,3.579965]
[1756905676458,0.77287472,4390.1,4390.0,3.579965]
[1756905677459,1.71397472,4390.1,4390.0,2.475065]
[1756905678962,5.71397472,4390.1,4390.0,2.475065]
[1756905680057,5.47397472,4390.1,4390.0,2.475065]
[1756905680358,5.71397472,4390.1,4390.0,2.475065]
[1756905680558,1.71397472,4390.1,4390.0,3.143765]
[1756905682061,0.53287472,4390.1,4390.0,3.579965]
[1756905682261,0.77287472,4390.1,4390.0,3.579965]
[1756905687859,0.77287472,4390.1,4390.0,7.579965]
[1756905687860,0.77187472,4390.1,4390.0,7.579965]
[1756905690873,0.77187472,4390.1,4390.0,3.579965]
[1756905691172,0.77187472,4390.1,4390.0,2.475065]
[1756905691173,6.33417157,4390.1,4390.0,2.475065]
[1756905692071,10.33417157,4390.1,4390.0,2.475065]
[1756905692672,11.562026,4390.1,4390.0,2.475065]
[1756905693175,10.33417157,4390.1,4390.0,2.475065]
[1756905693969,32.811,4390.7,4390.5,9.54161773]
[1756905694272,8.06799685,4390.6,4390.5,5.92787266]
[1756905694573,8.06799685,4390.6,4390.5,3.87917386]
[1756905694574,8.29575686,4390.6,4390.5,3.87917386]
[1756905694781,8.06799685,4390.6,4390.5,3.87917386]
[1756905695275,7.82899685,4390.6,4390.5,6.91363886]
[1756905695473,8.06799685,4390.6,4390.5,6.91363886]
[1756905695669,8.06799685,4390.6,4390.5,6.35423886]
[1756905697178,7.82899685,4390.6,4390.5,7.18343886]
[1756905697375,8.06799685,4390.6,4390.5,7.45913886]
[1756905698477,8.06799685,4390.6,4390.5,6.91363886]
[1756905699878,8.06799685,4390.6,4390.5,6.35423886]
[1756905700779,8.06799685,4390.6,4390.5,6.91363886]
[1756905702676,8.06799685,4390.6,4390.5,7.18343886]
[1756905703175,8.06799685,4390.6,4390.5,6.35423886]
[1756905703579,8.06799685,4390.6,4390.5,6.22983886]
[1756905703778,8.06799685,4390.6,4390.1,0.4668]
[1756905703978,0.497,4389.6,4389.5,0.1605]
[1756905704175,8.56499685,4389.6,4389.5,0.1605]
[1756905704377,8.72029685,4389.6,4389.5,4.1605]
[1756905704777,8.56499685,4389.6,4389.5,4.1605]
[1756905704972,8.72029685,4389.6,4389.0,0.1257]
[1756905705281,3.8601,4389.1,4388.0,0.1915]
[1756905705480,5.11819685,4388.6,4388.5,0.5111]
[1756905705683,5.11819685,4388.6,4388.5,0.8236]
[1756905705684,4.86019685,4388.6,4388.5,0.8236]
[1756905705878,4.86019685,4388.6,4388.5,5.2904]
[1756905706083,5.37341372,4388.6,4388.5,5.2904]
[1756905706981,5.37341372,4388.6,4388.5,7.242565]
[1756905710590,5.37341372,4388.6,4388.5,2.930065]
[1756905710785,5.37341372,4388.6,4388.5,2.610465]
[1756905710989,8.58121372,4388.6,4388.5,2.610465]
[1756905711582,8.58121372,4388.6,4388.5,1.952165]
[1756905712785,8.34221372,4388.6,4388.5,2.930065]
[1756905712983,8.58121372,4388.6,4388.5,3.242565]
[1756905713886,8.34221372,4388.6,4388.5,3.242565]
[1756905714085,0.75221687,4388.6,4388.5,7.242565]
[1756905715583,0.51321687,4388.6,4388.5,11.242565]
[1756905715887,16.9929833,4389.1,4388.5,7.242565]
[1756905716087,16.9929833,4389.1,4389.0,1.2904]
[1756905716290,17.2319833,4389.1,4389.0,1.2904]
[1756905719697,13.5188833,4389.1,4389.0,1.2904]
[1756905720387,13.5188833,4389.1,4389.0,3.242565]
[1756905720597,14.1481833,4389.1,4389.0,3.242565]
[1756905720889,14.6301833,4389.1,4389.0,1.952165]
[1756905721090,14.1481833,4389.1,4389.0,3.242565]
[1756905722391,4.62821683,4389.9,4389.8,0.7864]
[1756905722590,4.86721683,4389.9,4389.8,0.7864]
[1756905722894,5.34921683,4389.9,4389.8,0.7864]
[1756905723293,5.34921683,4389.9,4389.8,0.4668]
[1756905723594,1.1113,4389.6,4389.5,0.9779]
[1756905723798,1.3503,4389.6,4389.0,1.952165]
[1756905724089,8.31801683,4389.1,4389.0,1.952165]
[1756905724293,8.55701683,4389.1,4389.0,1.952165]
[1756905725986,8.31801683,4389.1,4389.0,1.952165]
[1756905726186,8.55701683,4389.1,4389.0,1.952165]
[1756905726384,8.74109286,4389.1,4389.0,1.952165]
[1756905726588,35.03752332,4390.0,4389.5,14.62127208]
[1756905726795,7.20671683,4389.6,4389.5,14.62127208]
[1756905726995,7.44571683,4389.6,4389.5,14.62127208]
[1756905727199,7.44571683,4389.6,4389.5,15.27957208]
[1756905728196,7.69691607,4389.6,4389.5,15.27957208]
[1756905728395,7.93591607,4389.6,4389.5,15.27957208]
[1756905730096,7.93621155,4389.6,4389.5,15.27957208]
[1756905730402,7.93621155,4389.6,4389.5,17.23173708]
[1756905732092,7.69721155,4389.6,4389.5,17.55133708]
[1756905732302,7.93621155,4389.6,4389.5,17.99713708]
[1756905732694,4.48941155,4389.6,4389.5,17.99713708]
[1756905733097,4.72841155,4389.6,4389.5,17.99713708]
[1756905735705,4.48941155,4389.6,4389.5,17.99713708]
[1756905735904,0.49049472,4389.6,4389.5,17.99713708]
[1756905736202,4.72841155,4389.6,4389.5,17.99713708]
[1756905736802,4.72841155,4389.6,4389.5,17.55133708]
[1756905737603,4.72841155,4389.6,4389.5,17.99713708]
[1756905738001,4.48941155,4389.6,4389.5,17.99713708]
[1756905738203,4.72841155,4389.6,4389.5,17.99713708]
[1756905739403,4.72841155,4389.6,4389.5,17.23173708]
[1756905739609,7.93621155,4389.6,4389.5,17.23173708]
[1756905740710,7.93621155,4389.6,4389.5,16.64503708]
[1756905741613,7.93621155,4389.6,4389.5,17.10433708]
[1756905742312,7.93621155,4389.6,4389.5,15.25749596]
[1756905742913,7.93621155,4389.6,4389.5,15.70329596]
[1756905746307,7.69721155,4389.6,4389.5,15.70329596]
[1756905746504,7.93621155,4389.6,4389.5,15.70329596]
[1756905746704,0.49049472,4389.6,4389.5,15.70329596]
[1756905746912,0.72949472,4389.6,4389.5,15.70329596]
[1756905748912,0.49049472,4389.6,4389.5,15.70329596]
[1756905749110,0.238,4389.6,4389.5,19.70329596]
[1756905749311,0.72849472,4389.6,4389.5,19.70329596]
[1756905749516,0.72849472,4389.6,4389.5,15.70329596]
[1756905750615,0.49049472,4389.6,4389.5,15.70329596]
[1756905751018,0.72849472,4389.6,4389.5,19.70329596]
[1756905753419,1.83899975,4389.6,4389.5,19.70329596]
[1756905753914,1.83899975,4389.6,4389.5,15.70329596]
[1756905755405,2.94950478,4389.6,4389.5,8.45964415]
[1756905755613,2.94950478,4389.6,4389.5,8.28794415]
[1756905755832,2.94950478,4389.6,4389.5,7.82864415]
[1756905756118,6.94950478,4389.6,4389.5,7.05114415]
[1756905756419,8.27020478,4389.6,4389.5,0.37439234]
[1756905756614,8.27020478,4389.6,4389.5,0.08019234]
[1756905757213,7.15969975,4389.6,4389.5,0.08019234]
[1756905757411,10.04888298,4389.6,4389.5,25.08019234]
[1756905757611,10.04888298,4389.6,4389.5,24.77099235]
[1756905758013,10.04888298,4389.6,4389.5,25.48169235]
[1756905758211,9.61398298,4389.6,4389.5,25.48169235]
[1756905758410,9.61398298,4389.6,4389.5,26.12819235]
[1756905759315,10.04888298,4389.6,4389.5,24.48031976]
[1756905759618,10.04888298,4389.6,4389.5,23.12621977]
[1756905760119,9.61398298,4389.6,4389.5,23.83691977]
[1756905762114,0.49049472,4389.6,4389.5,24.33291977]
[1756905762322,0.72849472,4389.6,4389.5,24.33291977]
[1756905762514,2.36572254,4389.6,4389.5,24.33291977]
[1756905762908,2.84852254,4389.6,4389.5,24.33291977]
[1756905763109,2.84857932,4389.6,4389.5,24.33291977]
[1756905764015,2.12777932,4389.6,4389.5,24.33291977]
[1756905764216,0.49049472,4389.6,4389.5,28.33291977]
[1756905764520,0.72849472,4389.6,4389.5,28.33291977]
[1756905766322,0.72849472,4389.6,4389.5,24.33291977]
[1756905767622,1.69939472,4389.6,4389.5,24.33291977]
[1756905767822,0.72849472,4389.6,4389.5,24.33291977]
[1756905770525,1.21129472,4389.6,4389.5,24.33291977]
[1756905770933,4.90719472,4389.6,4389.5,24.33291977]
[1756905771423,4.90719472,4389.6,4389.5,23.40261977]
[1756905773023,4.41909472,4389.6,4389.5,23.40261977]
[1756905775732,4.41909472,4389.6,4389.5,23.27421977]
[1756905776320,4.41909472,4389.6,4389.5,22.40791977]
[1756905776525,4.41909472,4389.6,4389.5,21.54201977]
[1756905777532,5.52997715,4389.6,4389.5,21.54201977]
[1756905778528,5.52997715,4389.6,4389.5,20.72761977]
[1756905779031,6.01807715,4389.6,4389.5,20.72761977]
[1756905779433,7.12895958,4389.6,4389.5,19.95461977]